fUSD/lending_fUSD_20251229
["ID","MTS","AMOUNT","RATE_DAILY","PERIOD"]
[399988847,1766982640839,-160.35667205,0.00015973,2]
[399988848,1766982640848,-500.0,0.00015973,2]
[399988849,1766982640858,-640.75514683,0.00015973,2]
[399988850,1766982640869,-500.88164907,0.00015973,2]
[399988851,1766982640879,-160.38202045,0.00015973,2]
[399988852,1766982640889,-500.0,0.00015973,2]
[399988853,1766982640898,-500.59736085,0.00015973,2]
[399988854,1766982640907,-556.66744122,0.00015973,2]
[399988855,1766982640917,-160.38807723,0.00015973,2]
[399988856,1766982640926,-150.11628956,0.00015973,2]
[399988857,1766982640935,-500.0,0.00015973,2]
[399988858,1766982640944,-500.666037,0.00015973,2]
[399988859,1766982640954,-160.36241432,0.00015973,2]
[399988860,1766982640964,-207.73718248,0.00015973,2]
[399988861,1766982640974,-500.66741802,0.00015973,2]
[399988862,1766982640983,-345.09227672,0.00015973,2]
[399988863,1766982640992,-500.0,0.00015973,2]
[399988864,1766982641001,-469.1568981,0.00015973,2]
[399988865,1766982641011,-500.89161542,0.00015973,2]
[399988866,1766982641020,-500.0,0.00015973,2]
[399988867,1766982641029,-395.98745688,0.00015973,2]
[399988868,1766982641039,-500.0,0.00015973,2]
[399988869,1766982641048,-159.6404404,0.00015973,2]
[399988870,1766982641057,-509.78604017,0.00015973,2]
[399988871,1766982641066,-500.88364004,0.00015973,2]
[399988872,1766982641075,-517.03696515,0.00015973,2]
[399988873,1766982641084,-506.84438702,0.00015973,2]
[399988874,1766982641094,-161.28925306,0.00015973,2]
[399988875,1766982641103,-500.0,0.00015973,2]
[399988876,1766982641112,-500.0,0.00015973,2]
[399988877,1766982641121,-500.39089292,0.00015973,2]
[399988878,1766982641131,-167.13247302,0.00015973,2]
[399988879,1766982641140,-500.38340673,0.00015973,2]
[399988880,1766982641149,-500.0,0.00015973,2]
[399988881,1766982641159,-500.0,0.00015973,2]
[399988882,1766982641168,-500.0,0.00015973,2]
[399988883,1766982641177,-500.0,0.00015973,2]
[399988884,1766982641187,-500.0,0.00015973,2]
[399988885,1766982641196,-500.0,0.00015973,2]
[399988886,1766982641205,-220.55617956,0.00015973,2]
[399988887,1766982641215,-500.0,0.00015973,2]
[399988888,1766982641224,-500.63352521,0.00015973,2]
[399988889,1766982641234,-500.0,0.00015973,2]
[399988890,1766982641243,-500.0,0.00015973,2]
[399988891,1766982641252,-500.33949331,0.00015973,2]
[399988892,1766982641262,-500.0,0.00015973,2]
[399988893,1766982641272,-150.36165219,0.00015973,2]
[399988894,1766982641282,-500.50758377,0.00015973,2]
[399988895,1766982641292,-500.0,0.00015973,2]
[399988896,1766982641301,-500.0,0.00015973,2]
[399988897,1766982641311,-501.47354804,0.00015973,2]
[399988898,1766982641322,-500.0,0.00015973,2]
[399988899,1766982641331,-1680.0,0.00016029,2]
[399988900,1766982641342,-190.0,0.0001608,2]
[399988901,1766982641352,-168.0,0.00016106,2]
[399988902,1766982641361,-190.0,0.00016173,2]
[399988903,1766982641371,-190.0,0.0001619,2]
[399988904,1766982641382,-5000.00597217,0.000162,5]
[399988905,1766982641391,-175.98,0.00016273,2]
[399988906,1766982641400,-190.0,0.00016281,2]
[399988907,1766982641410,-200.0,0.00016286,2]
[399988908,1766982641419,-168.0,0.00016374,2]
[399988909,1766982641428,-168.0,0.00016375,2]
[399988910,1766982641438,-168.0,0.00016398,2]
[399988911,1766982641449,-808.97552724,0.00016438,2]
[399988912,1766982641458,-168.0,0.00016495,2]
[399988913,1766982641469,-200.0,0.00016511,2]
[399988914,1766982641478,-200.0,0.00016511,2]
[399988915,1766982641488,-500.0,0.00016511,2]
[399988916,1766982641497,-1000.0,0.00016521,2]
[399988917,1766982641507,-1000.0,0.00016521,2]
[399988918,1766982641516,-1000.0,0.00016521,2]
[399988919,1766982641526,-1000.0,0.00016521,2]
[399988920,1766982641537,-1000.0,0.00016521,2]
[399988921,1766982641545,-1000.0,0.00016521,2]
[399988922,1766982641554,-1000.0,0.00016521,2]
[399988923,1766982641563,-1000.0,0.00016521,2]
[399988924,1766982641572,-1000.0,0.00016521,2]
[399988925,1766982641581,-1000.0,0.00016521,2]
[399988926,1766982641590,-1000.0,0.00016521,2]
[399988927,1766982641599,-1000.0,0.00016521,2]
[399988928,1766982641608,-177.96713888,0.00016521,2]
[399988929,1766982641617,-1000.0,0.00016521,2]
[399988930,1766982641625,-1000.0,0.00016521,2]
[399988931,1766982641634,-168.0,0.00016598,2]
[399988932,1766982641644,-168.0,0.0001662,2]
[399988933,1766982641656,-1058.33,0.00016676,2]
[399988934,1766982641665,-168.0,0.00016769,2]
[399988935,1766982641674,-168.0,0.0001682,2]
[399988936,1766982641683,-168.0,0.00016831,2]
[399988937,1766982641693,-168.0,0.00016831,2]
[399988938,1766982641702,-190.0,0.00016862,2]
[399988939,1766982641712,-433.0,0.00016903,2]
[399988940,1766982641722,-152.38807972,0.00016958,2]
[399988941,1766982641732,-6705.5057,0.00016968,2]
[399988942,1766982641742,-150.0,0.00016973,2]
[399988943,1766982641751,-2000.0,0.00017,2]
[399988944,1766982641761,-33051.65651733,0.00017,2]
[399988945,1766982641771,-2552.7,0.00017048,2]
[399988946,1766982641782,-200.0,0.00017059,2]
[399988947,1766982641793,-200.0,0.00017059,2]
[399988948,1766982641803,-500.0,0.00017059,2]
[399988949,1766982641812,-1500.0,0.00017068,2]
[399988950,1766982641822,-219.333204,0.00017068,2]
[399988951,1766982641831,-306.90902189,0.00017068,2]
[399988952,1766982641840,-1500.0,0.00017068,2]
[399988953,1766982641849,-1000.0,0.00017068,2]
[399988954,1766982641858,-1602.22845676,0.00017068,2]
[399988955,1766982641868,-1500.0,0.00017068,2]
[399988956,1766982641881,-1500.0,0.00017068,2]
[399988957,1766982641891,-1500.0,0.00017068,2]
[399988958,1766982641901,-1500.0,0.00017068,2]
[399988959,1766982641911,-1472.71346033,0.00017068,2]
[399988960,1766982641920,-1500.0,0.00017068,2]
[399988961,1766982641930,-1500.0,0.00017068,2]
[399988962,1766982641940,-1500.0,0.00017068,2]
[399988963,1766982641949,-7026.26,0.00017117,2]
[399988964,1766982641959,-166.66,0.00017154,2]
[399988965,1766982641969,-168.0,0.00017183,2]
[399988966,1766982641978,-168.0,0.0001727,2]
[399988967,1766982641988,-168.0,0.00017314,2]
[399988968,1766982641997,-168.0,0.0001742,2]
[399988969,1766982642007,-190.0,0.00017422,2]
[399988970,1766982642016,-1878.0,0.00017468,2]
[399988971,1766982642026,-587.0,0.00017469,2]
[399988972,1766982642036,-150.47229298,0.00017521,2]
[399988973,1766982642045,-168.0,0.00017539,2]
[399988974,1766982642055,-200.0,0.00017607,2]
[399988975,1766982642064,-200.0,0.00017607,2]
[399988976,1766982642074,-500.0,0.00017607,2]
[399988977,1766982642083,-581.20257219,0.00017616,2]
[399988978,1766982642093,-2000.0,0.00017616,2]
[399988979,1766982642103,-2000.0,0.00017616,2]
[399988980,1766982642112,-1505.48427764,0.00017616,2]
[399988981,1766982642121,-2000.0,0.00017616,2]
[399988982,1766982642130,-1970.38817896,0.00017616,2]
[399988983,1766982642139,-1998.31513644,0.00017616,2]
[399988984,1766982642148,-2000.0,0.00017616,2]
[399988985,1766982642157,-2000.0,0.00017616,2]
[399988986,1766982642166,-2351.0,0.00017632,2]
[399988987,1766982642174,-168.0,0.00017641,2]
[399988988,1766982642183,-168.0,0.00017679,2]
[399988989,1766982642193,-166.66,0.0001772,2]
[399988990,1766982642202,-168.0,0.00017749,2]
[399988991,1766982642211,-158.96402026,0.00017927,2]
[399988992,1766982642220,-13256.00660321,0.00018,2]
[399988993,1766982642229,-55229.93059075,0.00018,2]
[399988994,1766982642239,-1186.87668689,0.00018,2]
[399988995,1766982642248,-1000.0,0.00018082,2]
[399988996,1766982642258,-200.0,0.00018155,2]
[399988997,1766982642268,-200.0,0.00018155,2]
[399988998,1766982642277,-500.0,0.00018155,2]
[399988999,1766982642286,-1001.85560352,0.00018164,2]
[399989000,1766982642295,-501.39022601,0.00018164,2]
[399989001,1766982642305,-947.89649868,0.00018164,2]
[399989002,1766982642314,-1002.8859502,0.00018164,2]
[399989003,1766982642323,-736.0,0.000182,2]
[399989004,1766982642332,-166.66,0.00018286,2]
[399989005,1766982642341,-10478.76344461,0.00018661,2]
[399989006,1766982642350,-207.4,0.00018702,2]
[399989007,1766982642359,-200.0,0.00018703,2]
[399989008,1766982642368,-200.0,0.00018703,2]
[399989009,1766982642377,-500.0,0.00018703,2]
[399989010,1766982642386,-1000.0,0.0001876,2]
[399989011,1766982642395,-1058.33,0.0001876,2]
[399989012,1766982642404,-151.79,0.000188,2]
[399989013,1766982642413,-166.66,0.00018853,2]
[399989014,1766982642423,-150.0,0.00018955,2]
[399989015,1766982642432,-200.0,0.00019082,2]
[399989016,1766982642441,-251.74408589,0.00019122,2]
[399989017,1766982642453,-823.0,0.00019127,2]
[399989018,1766982642463,-20079.31,0.00019178,2]
[399989019,1766982642472,-150.38701344,0.00019178,2]
[399989020,1766982642481,-200.0,0.00019251,2]
[399989021,1766982642490,-200.0,0.00019251,2]
[399989022,1766982642499,-500.0,0.00019251,2]
[399989023,1766982642508,-3292.0,0.00019395,2]
[399989024,1766982642518,-2552.7,0.00019403,2]
[399989025,1766982642528,-166.66,0.00019419,2]
[399989026,1766982642537,-1000.0,0.00019438,2]
[399989027,1766982642547,-1252.0,0.00019599,2]
[399989028,1766982642556,-150.50594987,0.00019726,2]
[399989029,1766982642565,-200.0,0.00019799,2]
[399989030,1766982642574,-200.0,0.00019799,2]
[399989031,1766982642584,-500.0,0.00019799,2]
[399989032,1766982642594,-166.66,0.00019985,2]
[399989033,1766982642603,-158.96402026,0.00020034,2]
[399989034,1766982642612,-158.41226066,0.00020083,2]
[399989035,1766982642621,-1000.0,0.00020116,2]
[399989036,1766982642631,-303.70228551,0.00020134,2]
[399989037,1766982642641,-175.98,0.00020341,2]
[399989038,1766982642654,-1126.79,0.00020341,2]
[399989039,1766982642663,-200.0,0.00020347,2]
[399989040,1766982642672,-200.0,0.00020347,2]
[399989041,1766982642683,-2000.0,0.000207,2]
[399989042,1766982642694,-433.38,0.00020743,2]
[399989043,1766982642704,-1000.0,0.00020795,2]
[399989044,1766982642713,-1058.33,0.00020845,2]
[399989045,1766982642723,-253.99572653,0.00020895,2]
[399989046,1766982642732,-200.0,0.00020895,2]
[399989047,1766982642741,-1152.0,0.00020943,2]
[399989048,1766982642753,-433.38,0.00021017,2]
[399989049,1766982642766,-2129.0,0.00021114,2]
[399989050,1766982642776,-433.38,0.00021291,2]
[399989051,1766982642785,-4609.0,0.00021334,2]
[399989052,1766982642795,-215.0738,0.00021441,2]
[399989053,1766982642805,-200.0,0.00021443,2]
[399989054,1766982642816,-10478.76344461,0.00021504,2]
[399989055,1766982642825,-433.39,0.00021565,2]
[399989056,1766982642835,-2552.7,0.00021757,2]
[399989057,1766982642844,-5000.0,0.00021918,2]
[399989058,1766982642854,-500.0,0.00021918,2]
[399989059,1766982642866,-500.0,0.00021918,2]
[399989060,1766982642875,-166.91620635,0.00021918,2]
[399989061,1766982642885,-151.55467164,0.00021941,2]
[399989062,1766982642895,-201.14203107,0.00021991,2]
[399989063,1766982642906,-473.99,0.00022,7]
[399989065,1766982642916,-794.436222,0.00022329,2]
[399989067,1766982642925,-3620.0,0.00022746,2]
[399989068,1766982642934,-524.802,0.00022863,2]
[399989069,1766982642943,-1267.139,0.00022863,2]
[399989070,1766982642952,-4810.0,0.00022863,2]
[399989071,1766982642963,-1327.0,0.00022863,2]
[399989072,1766982642972,-2432.0,0.00022863,2]
[399989073,1766982642982,-1058.33,0.00022929,2]
[399989074,1766982642992,-1613.0,0.00022931,2]
[399989075,1766982643002,-6453.0,0.00023468,2]
[399989076,1766982643013,-330.0860819,0.00023835,2]
[399989077,1766982643022,-200.0,0.00023935,2]
[399989078,1766982643031,-207.4,0.00023935,2]
[399989079,1766982643040,-215.0738,0.00023935,2]
[399989080,1766982643050,-223.0315306,0.00023935,2]
[399989081,1766982643060,-231.28369723,0.00023935,2]
[399989082,1766982643069,-239.84119403,0.00023935,2]
[399989083,1766982643078,-151.0,0.00023935,2]
[399989084,1766982643087,-248.71531821,0.00023935,2]
[399989085,1766982643097,-257.91778498,0.00023935,2]
[399989086,1766982643107,-1000.0,0.00023935,2]
[399989087,1766982643116,-1000.0,0.00023935,2]
[399989088,1766982643125,-1000.0,0.00023935,2]
[399989089,1766982643135,-1000.0,0.00023935,2]
[399989090,1766982643144,-250.0,0.00023935,2]
[399989091,1766982643153,-250.0,0.00023935,2]
[399989092,1766982643162,-1000.0,0.00023935,2]
[399989093,1766982643172,-500.0,0.00023935,2]
[399989094,1766982643181,-500.0,0.00023935,2]
[399989095,1766982643191,-250.0,0.00023935,2]
[399989096,1766982643199,-500.0,0.00023935,2]
[399989097,1766982643209,-247.91299254,0.00023935,2]
[399989098,1766982643218,-500.0,0.00023935,2]
[399989099,1766982643227,-533.88981491,0.00023935,2]
[399989100,1766982643237,-500.0,0.00023935,2]
[399989101,1766982643246,-500.0,0.00023935,2]
[399989102,1766982643259,-500.0,0.00023935,2]
[399989103,1766982643271,-500.0,0.00023935,2]
[399989104,1766982643281,-500.0,0.00023935,2]
[399989105,1766982643293,-620.0,0.00023935,2]
[399989106,1766982643303,-500.0,0.00023935,2]
[399989107,1766982643314,-500.0,0.00023935,2]
[399989108,1766982643325,-500.0,0.00023935,2]
[399989109,1766982643336,-500.0,0.00023935,2]
[399989110,1766982643346,-630.96912444,0.00023935,2]
[399989111,1766982643356,-500.0,0.00023935,2]
[399989112,1766982643367,-500.0,0.00023935,2]
[399989113,1766982643377,-500.0,0.00023935,2]
[399989114,1766982643387,-500.0,0.00023935,2]
[399989115,1766982643397,-500.0,0.00023935,2]
[399989116,1766982643406,-500.0,0.00023935,2]
[399989117,1766982643416,-500.0,0.00023935,2]
[399989118,1766982643427,-250.0,0.00023935,2]
[399989119,1766982643437,-500.0,0.00023935,2]
[399989120,1766982643447,-250.0,0.00023935,2]
[399989121,1766982643457,-500.0,0.00023935,2]
[399989122,1766982643468,-250.0,0.00023935,2]
[399989123,1766982643479,-250.0,0.00023935,2]
[399989124,1766982643489,-500.0,0.00023935,2]
[399989125,1766982643500,-250.0,0.00023935,2]
[399989126,1766982643510,-322.6107,0.00023935,2]
[399989127,1766982643521,-500.0,0.00023935,2]
[399989128,1766982643531,-250.0,0.00023935,2]
[399989129,1766982643542,-500.0,0.00023935,2]
[399989130,1766982643553,-250.0,0.00023935,2]
[399989131,1766982643563,-500.0,0.00023935,2]
[399989132,1766982643573,-250.0,0.00023935,2]
[399989133,1766982643584,-500.0,0.00023935,2]
[399989134,1766982643595,-250.0,0.00023935,2]
[399989135,1766982643605,-250.0,0.00023935,2]
[399989136,1766982643616,-250.0,0.00023935,2]
[399989137,1766982643626,-250.0,0.00023935,2]
[399989138,1766982643636,-250.0,0.00023935,2]
[399989139,1766982643648,-250.0,0.00023935,2]
[399989140,1766982643658,-250.0,0.00023935,2]
[399989141,1766982643668,-250.0,0.00023935,2]
[399989142,1766982643678,-250.0,0.00023935,2]
[399989143,1766982643690,-250.0,0.00023935,2]
[399989144,1766982643700,-250.0,0.00023935,2]
[399989145,1766982643710,-250.0,0.00023935,2]
[399989146,1766982643720,-250.0,0.00023935,2]
[399989147,1766982643730,-250.0,0.00023935,2]
[399989148,1766982643739,-261.05610334,0.00023935,2]
[399989149,1766982643749,-2552.7,0.00024112,2]
[399989150,1766982643760,-223.0315306,0.0002418,2]
[399989151,1766982643771,-10478.76344461,0.00024346,2]
[399989152,1766982643781,-158.41226066,0.00024346,2]
[399989153,1766982643792,-2000.0,0.000244,2]
[399989154,1766982643802,-175.98,0.0002441,2]
[399989155,1766982643813,-151.0,0.00024483,2]
[399989156,1766982643823,-553.64373807,0.00024483,2]
[399989157,1766982643833,-1638.0,0.00024495,2]
[399989158,1766982643843,-1000.0,0.00024658,2]
[399989159,1766982643854,-36266.0,0.000249,2]
[399989160,1766982643865,-164.87800468,0.00025031,2]
[399989161,1766982643876,-574.12855637,0.00025031,2]
[399989162,1766982643886,-1658.0,0.00025107,2]
[399989163,1766982643897,-267.46074303,0.00025304,2]
[399989164,1766982643907,-642.94,0.00025304,2]
[399989165,1766982643918,-334.54729592,0.00025304,2]
[399989166,1766982643929,-595.37131296,0.00025579,2]
[399989167,1766982643939,-5528.0,0.000257,3]
[399989168,1766982643949,-330.0860819,0.00025787,2]
[399989169,1766982643960,-9035.0,0.00025814,2]
[399989170,1766982643971,-151.0,0.0002586,7]
[399989171,1766982643982,-432.0,0.00025863,2]
[399989172,1766982643992,-1264.0,0.00025863,2]
[399989173,1766982644003,-4810.0,0.00025863,2]
[399989174,1766982644013,-1327.0,0.00025863,2]
[399989175,1766982644023,-2432.0,0.00025863,2]
[399989176,1766982644034,-473.99,0.000259,7]
[399989177,1766982644044,-5265.12558388,0.00025934,2]
[399989178,1766982644055,-5000.0,0.00025934,2]
[399989179,1766982644067,-5000.0,0.00025934,2]
[399989180,1766982644078,-5000.0,0.00025934,2]
[399989181,1766982644088,-5000.0,0.00025934,2]
[399989182,1766982644099,-170.110352,0.00026127,2]
[399989183,1766982644109,-349.50805846,0.00026177,14]
[399989184,1766982644120,-166.66,0.00026445,30]
[399989185,1766982644131,-2552.7,0.00026467,2]
[399989186,1766982644141,-3348.45,0.00026483,2]
[399989187,1766982644151,-5528.0,0.000265,5]
[399989188,1766982644162,-1000.0,0.00026512,30]
[399989189,1766982644172,-277.35679052,0.00026673,2]
[399989190,1766982644183,-223.60989723,0.00026919,2]
[399989191,1766982644194,-166.66,0.00027002,30]
[399989192,1766982644205,-10478.76344461,0.00027188,2]
[399989193,1766982644215,-5176.67,0.00027385,2]
[399989194,1766982644225,-300.0,0.00027397,2]
[399989195,1766982644236,-151.55467164,0.00027426,2]
[399989196,1766982644247,-166.66,0.00027558,30]
[399989197,1766982644259,-330.0860819,0.00027738,2]
[399989198,1766982644272,-287.61899177,0.00028042,2]
[399989199,1766982644283,-2000.0,0.000281,2]
[399989200,1766982644294,-473.99,0.000281,7]
[399989201,1766982644306,-166.66,0.00028115,30]
[399989202,1766982644317,-150.0,0.00028115,2]
[399989203,1766982644329,-3807.9541284,0.00028347,2]
[399989204,1766982644340,-131031.3709135,0.00028347,2]
[399989205,1766982644353,-529.0,0.00028396,2]
[399989206,1766982644364,-158.41226066,0.0002861,2]
[399989207,1766982644375,-166.66,0.00028672,30]
[399989208,1766982644384,-2552.7,0.00028822,2]
[399989209,1766982644394,-432.0,0.00028863,2]
[399989210,1766982644404,-1264.0,0.00028863,2]
[399989211,1766982644414,-4339.325,0.00028863,2]
[399989212,1766982644424,-1327.0,0.00028863,2]
[399989213,1766982644434,-2432.0,0.00028863,2]
[399989214,1766982644444,-457.2644693,0.00029221,2]
[399989215,1766982644453,-166.66,0.00029229,30]
[399989216,1766982644463,-365.7207366,0.00029411,2]
[399989217,1766982644473,-330.0860819,0.0002969,2]
[399989218,1766982644483,-10478.76344461,0.00030031,2]
[399989219,1766982644493,-194.72792766,0.00030136,3]
[399989220,1766982644504,-201.93286099,0.00030136,3]
[399989221,1766982644513,-209.40437684,0.00030136,3]
[399989222,1766982644524,-279.19741886,0.00030136,3]
[399989223,1766982644536,-578.20924308,0.00030136,3]
[399989224,1766982644546,-500.04075253,0.00030136,2]
[399989225,1766982644557,-2076.0,0.00031065,5]
[399989226,1766982644569,-2552.7,0.00031176,2]
[399989227,1766982644580,-151.0,0.00031309,7]
[399989228,1766982644590,-131031.3709135,0.00031312,2]
[399989229,1766982644601,-3807.9541284,0.00031312,2]
[399989230,1766982644611,-330.0860819,0.00031642,2]
[399989231,1766982644620,-2000.0,0.000318,2]
[399989232,1766982644630,-473.99,0.000318,7]
[399989233,1766982644639,-1140.952,0.00031814,30]
[399989235,1766982644653,-185.798,0.00031814,30]
[399989236,1766982644664,-1264.0,0.00031863,2]
[399989237,1766982644673,-1327.0,0.00031863,2]
[399989238,1766982644683,-2432.0,0.00031863,2]
[399989239,1766982644694,-329.1245,0.00032558,2]
[399989240,1766982644705,-384.10756804,0.000326,2]
[399989241,1766982644716,-500.0,0.00032603,2]
[399989242,1766982644726,-150.0,0.00032603,2]
[399989243,1766982644736,-500.0,0.00032603,2]
[399989244,1766982644746,-500.0,0.00032603,2]
[399989245,1766982644756,-150.0,0.00032603,2]
[399989246,1766982644767,-150.0,0.00032603,2]
[399989247,1766982644777,-151.68243268,0.00032603,2]
[399989248,1766982644788,-500.0,0.00032603,2]
[399989249,1766982644800,-157.05307027,0.00032603,2]
[399989250,1766982644810,-150.0,0.00032603,2]
[399989251,1766982644822,-150.0,0.00032603,2]
[399989252,1766982644832,-150.0,0.00032603,2]
[399989253,1766982644843,-201.68691354,0.00032603,2]
[399989254,1766982644853,-150.0,0.00032603,2]
[399989255,1766982644862,-150.44455097,0.00032603,2]
[399989256,1766982644873,-500.0,0.00032603,2]
[399989257,1766982644883,-500.0,0.00032603,2]
[399989258,1766982644892,-150.0,0.00032603,2]
[399989259,1766982644902,-150.0,0.00032603,2]
[399989260,1766982644913,-500.0,0.00032603,2]
[399989261,1766982644924,-1265.0,0.00032603,2]
[399989262,1766982644935,-1363.0,0.00032603,2]
[399989263,1766982644945,-150.0,0.00032603,2]
[399989264,1766982644955,-910.0,0.00032603,2]
[399989265,1766982644966,-153.37154581,0.00032603,2]
[399989266,1766982644976,-150.0,0.00032603,2]
[399989267,1766982644986,-190.71452459,0.00032603,2]
[399989268,1766982644996,-211.69015909,0.00032603,2]
[399989269,1766982645007,-500.0,0.00032603,2]
[399989270,1766982645017,-150.0,0.00032603,2]
[399989271,1766982645028,-150.0,0.00032603,2]
[399989272,1766982645038,-500.0,0.00032603,2]
[399989273,1766982645048,-150.0,0.00032603,2]
[399989274,1766982645059,-150.0,0.00032603,2]
[399989275,1766982645069,-500.0,0.00032603,2]
[399989276,1766982645079,-150.0,0.00032603,2]
[399989277,1766982645089,-500.0,0.00032603,2]
[399989278,1766982645099,-500.0,0.00032603,2]
[399989279,1766982645108,-153.23204899,0.00032603,2]
[399989280,1766982645118,-500.0,0.0003263,2]
[399989281,1766982645128,-150.0,0.0003263,2]
[399989282,1766982645138,-500.0,0.0003263,2]
[399989283,1766982645148,-500.0,0.0003263,2]
[399989284,1766982645158,-150.0,0.0003263,2]
[399989285,1766982645168,-150.0,0.0003263,2]
[399989286,1766982645178,-500.0,0.0003263,2]
[399989287,1766982645188,-150.0,0.0003263,2]
[399989288,1766982645197,-150.0,0.0003263,2]
[399989289,1766982645207,-152.62569874,0.0003263,2]
[399989290,1766982645217,-150.0,0.0003263,2]
[399989291,1766982645227,-568.97687509,0.0003263,2]
[399989292,1766982645240,-509.8188358,0.0003263,2]
[399989293,1766982645251,-291.9558,0.0003263,2]
[399989294,1766982645262,-157.51435048,0.0003263,2]
[399989295,1766982645272,-500.0,0.0003263,2]
[399989296,1766982645281,-1265.0,0.0003263,2]
[399989297,1766982645293,-1363.0,0.0003263,2]
[399989298,1766982645303,-150.0,0.0003263,2]
[399989299,1766982645315,-910.0,0.0003263,2]
[399989300,1766982645326,-150.0,0.0003263,2]
[399989301,1766982645338,-150.0,0.0003263,2]
[399989302,1766982645350,-500.0,0.0003263,2]
[399989303,1766982645359,-150.0,0.0003263,2]
[399989304,1766982645369,-500.0,0.0003263,2]
[399989305,1766982645379,-212.70932433,0.0003263,2]
[399989306,1766982645389,-500.0,0.0003263,2]
[399989307,1766982645399,-500.0,0.0003263,2]
[399989308,1766982645409,-644.32318357,0.0003263,2]
[399989309,1766982645418,-1000.0,0.00032657,2]
[399989310,1766982645428,-500.0,0.00032658,2]
[399989311,1766982645438,-150.0,0.00032658,2]
[399989312,1766982645447,-603.09881832,0.00032658,2]
[399989313,1766982645457,-228.33347458,0.00032658,2]
[399989314,1766982645467,-158.05606636,0.00032658,2]
[399989315,1766982645477,-150.0,0.00032658,2]
[399989316,1766982645487,-500.0,0.00032658,2]
[399989317,1766982645497,-207.75247149,0.00032658,2]
[399989318,1766982645507,-235.66325628,0.00032658,2]
[399989319,1766982645517,-150.0,0.00032658,2]
[399989320,1766982645526,-500.0,0.00032658,2]
[399989321,1766982645537,-1265.0,0.00032658,2]
[399989322,1766982645547,-1363.0,0.00032658,2]
[399989323,1766982645558,-150.0,0.00032658,2]
[399989324,1766982645569,-910.0,0.00032658,2]
[399989325,1766982645581,-150.0,0.00032658,2]
[399989326,1766982645592,-281.59382496,0.00032658,2]
[399989327,1766982645603,-382.93975976,0.00032658,2]
[399989328,1766982645613,-150.0,0.00032658,2]
[399989329,1766982645622,-500.0,0.00032658,2]
[399989330,1766982645632,-500.0,0.00032658,2]
[399989331,1766982645642,-418.75571957,0.00032658,2]
[399989332,1766982645656,-2000.0,0.00032658,2]
[399989333,1766982645666,-200.0,0.00032658,2]
[399989334,1766982645675,-151.0,0.00032658,2]
[399989335,1766982645685,-1263.44134491,0.00032658,2]
[399989336,1766982645696,-200.0,0.00032658,2]
[399989337,1766982645706,-200.0,0.00032658,2]
[399989338,1766982645716,-387.95460561,0.00032685,2]
[399989339,1766982645726,-193.59502584,0.00032685,2]
[399989340,1766982645738,-150.0,0.00032685,2]
[399989341,1766982645751,-394.80349152,0.00032685,2]
[399989342,1766982645762,-155.26715119,0.00032685,2]
[399989343,1766982645771,-500.0,0.00032685,2]
[399989344,1766982645781,-1265.0,0.00032685,2]
[399989345,1766982645791,-1363.0,0.00032685,2]
[399989346,1766982645800,-150.0,0.00032685,2]
[399989347,1766982645810,-910.0,0.00032685,2]
[399989348,1766982645820,-282.41928125,0.00032685,2]
[399989349,1766982645830,-150.0,0.00032685,2]